fUST/lending_fUST_20241106
["ID","MTS","AMOUNT","RATE_DAILY","PERIOD"]
[341431875,1730879448503,-830.044982,0.000319,7]
[341431877,1730879448512,-830.04499133,0.000319,7]
[341431879,1730879448522,-151.0,0.0003194,7]
[341431881,1730879448531,-771.23037788,0.00031945,120]
[341431883,1730879448540,-153.0,0.00032,30]
[341431885,1730879448550,-285.0637345,0.00032,30]
[341431887,1730879448559,-153.0,0.00032,30]
[341431889,1730879448569,-153.0,0.00032,30]
[341431891,1730879448579,-153.0,0.00032,30]
[341431893,1730879448588,-153.0,0.00032,30]
[341431895,1730879448598,-153.0,0.00032,30]
[341431897,1730879448608,-2472.20220684,0.00032,5]
[341431899,1730879448617,-173.8956921,0.00032,120]
[341431901,1730879448627,-5050.43620723,0.00032,3]
[341431903,1730879448636,-151.0,0.00032,7]
[341431905,1730879448646,-151.0,0.00032,7]
[341431907,1730879448655,-151.0,0.00032,7]
[341431909,1730879448664,-1087.698409,0.00032,7]
[341431911,1730879448674,-1087.698409,0.00032,7]
[341431913,1730879448683,-623.235953,0.00032,7]
[341431915,1730879448692,-623.235953,0.00032,7]
[341431917,1730879448701,-151.0,0.00032,3]
[341431919,1730879448710,-500.0,0.00032,30]
[341431921,1730879448720,-503.9334,0.00032,30]
[341431923,1730879448729,-174.470666,0.00032,7]
[341431926,1730879448739,-174.470666,0.00032,7]
[341431927,1730879448747,-228.927548,0.00032,7]
[341431929,1730879448757,-228.927548,0.00032,7]
[341431931,1730879448766,-6166.38651901,0.0003212,10]
[341431934,1730879448776,-157.287643,0.0003212,7]
[341431936,1730879448786,-154.73122,0.0003212,7]
[341431938,1730879448796,-737.053366,0.0003212,7]
[341431939,1730879448808,-737.053366,0.0003212,7]
[341431941,1730879448817,-623.235953,0.0003212,7]
[341431944,1730879448829,-623.23595162,0.0003212,7]
[341431946,1730879448838,-174.470666,0.0003212,7]
[341431948,1730879448848,-174.470665,0.0003212,7]
[341431950,1730879448857,-228.927548,0.0003212,7]
[341431952,1730879448868,-228.927539,0.0003212,7]
[341431953,1730879448877,-219.922894,0.0003212,7]
[341431955,1730879448887,-219.922896,0.0003212,7]
[341431958,1730879448897,-151.0,0.0003212,7]
[341431960,1730879448907,-150.28,0.00032174,14]
[341431962,1730879448916,-150.28,0.00032174,14]
[341431964,1730879448926,-509.31655193,0.00032175,5]
[341431966,1730879448936,-151.0,0.00032219,120]
[341431967,1730879448945,-275.749633,0.00032254,7]
[341431969,1730879448955,-275.749633,0.00032254,7]
[341431971,1730879448964,-258.59138947,0.00032384,2]
[341431973,1730879448973,-160.0,0.000324,120]
[341431974,1730879448983,-208.90898993,0.000325,120]
[341431975,1730879448993,-465.21220068,0.00032505,2]
[341431976,1730879449002,-211.2956293,0.00032571,30]
[341431977,1730879449011,-204.1646408,0.00032641,30]
[341431978,1730879449021,-303.4019452,0.00032641,30]
[341431979,1730879449030,-211.2956293,0.00032641,30]
[341431980,1730879449039,-505.04880581,0.00032699,5]
[341431981,1730879449048,-500.0,0.00032699,5]
[341431982,1730879449058,-202.77469,0.000327,120]
[341431983,1730879449067,-200.0,0.000327,120]
[341431984,1730879449078,-250.132007,0.000327,7]
[341431985,1730879449088,-1087.698409,0.000327,7]
[341431986,1730879449097,-1087.698409,0.000327,7]
[341431987,1730879449106,-500.0,0.00032773,5]
[341431988,1730879449115,-500.0,0.00032773,5]
[341431989,1730879449124,-500.0,0.00032773,5]
[341431990,1730879449133,-1204236.09908653,0.0003278,30]
[341431991,1730879449142,-151.0,0.0003278,7]
[341431992,1730879449151,-151.0,0.0003278,7]
[341431993,1730879449161,-151.0,0.0003278,7]
[341431994,1730879449170,-216.292038,0.0003278,7]
[341431995,1730879449181,-216.292038,0.0003278,7]
[341431996,1730879449191,-275.749633,0.0003278,7]
[341431998,1730879449200,-275.749633,0.0003278,7]
[341432000,1730879449210,-151.0,0.0003278,7]
[341432002,1730879449220,-151.0,0.0003278,7]
[341432004,1730879449229,-737.053366,0.0003278,7]
[341432006,1730879449239,-1087.698409,0.0003278,7]
[341432008,1730879449249,-737.053366,0.0003278,7]
[341432010,1730879449259,-1087.698409,0.0003278,7]
[341432012,1730879449268,-263.070447,0.0003278,3]
[341432014,1730879449277,-275.749633,0.00032876,7]
[341432016,1730879449287,-275.749633,0.00032876,7]
[341432018,1730879449296,-151.0,0.00032876,7]
[341432020,1730879449306,-151.0,0.00032876,7]
[341432022,1730879449315,-737.053366,0.00032876,7]
[341432024,1730879449324,-1087.698409,0.00032876,7]
[341432026,1730879449335,-737.053366,0.00032876,7]
[341432028,1730879449344,-1087.698403,0.00032876,7]
[341432030,1730879449354,-1500.0,0.00032876,2]
[341432032,1730879449363,-1743.201223,0.00032877,120]
[341432034,1730879449373,-587.0,0.00032887,2]
[341432036,1730879449383,-500.0,0.000329,40]
[341432038,1730879449393,-153.0,0.00032959,30]
[341432040,1730879449403,-153.0,0.00032959,30]
[341432042,1730879449412,-153.0,0.00032959,30]
[341432044,1730879449421,-387.0765398,0.00032959,30]
[341432046,1730879449433,-156.14352269,0.00032996,14]
[341432048,1730879449442,-3642.88373304,0.00033,2]
[341432050,1730879449452,-35359.18682022,0.00033,2]
[341432052,1730879449462,-151.0,0.00033,14]
[341432054,1730879449471,-151.0,0.00033,14]
[341432056,1730879449480,-151.0,0.00033,14]
[341432058,1730879449489,-216.292038,0.00033,14]
[341432060,1730879449498,-216.292038,0.00033,14]
[341432062,1730879449508,-1589.74626114,0.00033,30]
[341432064,1730879449518,-275.749633,0.00033,14]
[341432066,1730879449527,-275.749639,0.00033,14]
[341432068,1730879449537,-151.0,0.00033,14]
[341432070,1730879449547,-162.0,0.00033,2]
[341432072,1730879449556,-737.053366,0.00033,14]
[341432074,1730879449566,-737.053375,0.00033,14]
[341432076,1730879449575,-163.0,0.00033,2]
[341432078,1730879449586,-151.0,0.00033014,120]
[341432089,1730879449683,-153.0,0.00033133,2]
[341432091,1730879449693,-153.0,0.00033133,2]
[341432092,1730879449702,-151.0,0.00033142,14]
[341432094,1730879449712,-187.306636,0.00033142,14]
[341432096,1730879449721,-216.292038,0.00033142,14]
[341432098,1730879449731,-216.292038,0.00033142,14]
[341432100,1730879449740,-1000.0,0.00033142,2]
[341432102,1730879449750,-1000.0,0.00033142,5]
[341432104,1730879449760,-605.0,0.00033226,2]
[341432106,1730879449769,-1000.0,0.00033242,5]
[341432108,1730879449778,-653.93431464,0.00033242,5]
[341432110,1730879449787,-1000.0,0.00033242,5]
[341432112,1730879449796,-440.89823273,0.00033242,5]
[341432113,1730879449809,-765.93427113,0.00033242,5]
[341432115,1730879449818,-662.5,0.000333,30]
[341432117,1730879449830,-27950.27933533,0.000333,2]
[341432119,1730879449839,-151.0,0.000333,14]
[341432122,1730879449849,-524.62,0.000336,30]
[341432124,1730879449859,-154.19,0.000336,31]
[341432125,1730879449868,-154.19,0.000336,31]
[341432127,1730879449877,-154.19,0.000336,31]
[341432129,1730879449887,-154.19,0.000336,31]
[341432131,1730879449896,-154.19,0.000336,31]
[341432134,1730879449905,-154.19,0.000336,31]
[341432136,1730879449915,-1500.0,0.00033835,3]
[341432138,1730879449924,-500.0,0.000339,43]
[341432140,1730879449933,-151.0,0.00033972,14]
[341432142,1730879449943,-216.292038,0.00033972,14]
[341432144,1730879449952,-216.292038,0.00033972,14]
[341432146,1730879449961,-2728.94,0.00033972,120]
[341432148,1730879449971,-7963.14015526,0.0003398,4]
[341432150,1730879449980,-160.0,0.00034,120]
[341432152,1730879449990,-615.97358228,0.00034142,5]
[341432154,1730879449999,-1000.0,0.00034142,5]
[341432156,1730879450009,-558.91721875,0.00034162,30]
[341432158,1730879450019,-251.297,0.00034328,2]
[341432160,1730879450028,-529.0,0.00034328,2]
[341432162,1730879450037,-1137.0,0.00034328,2]
[341432164,1730879450047,-2393.0,0.00034328,2]
[341432166,1730879450056,-518.449999,0.00034339,30]
[341432168,1730879450067,-174.58037781,0.00034431,30]
[341432170,1730879450076,-151.0,0.00034438,120]
[341432172,1730879450088,-600.0,0.00034509,4]
[341432174,1730879450097,-162.0,0.00034521,2]
[341432176,1730879450107,-164.0,0.00034521,2]
[341432178,1730879450116,-167.0,0.00034563,30]
[341432180,1730879450126,-37221.44719517,0.00034563,7]
[341432182,1730879450135,-16829.36104659,0.00034563,7]
[341432184,1730879450144,-321.04540729,0.00034563,2]
[341432186,1730879450153,-46898.44266105,0.00034563,5]
[341432188,1730879450163,-18187.58516525,0.00034563,2]
[341432190,1730879450172,-82266.60498787,0.00034563,2]
[341432192,1730879450182,-83206.00091282,0.00034563,20]
[341432200,1730879450253,-1411.78975623,0.00031772,2]
[341432202,1730879450263,-195.685031,0.0003183,7]
[341432204,1730879450273,-151.0,0.0003186,7]
[341432206,1730879450282,-151.0,0.0003188,7]
[341432208,1730879450291,-150.326,0.00034328,2]
[341432210,1730879450301,-10195.8543768,0.00034563,20]
[341432228,1730879450464,-195.685031,0.000317,7]
[341432230,1730879450476,-151.0,0.0003177,7]
[341432232,1730879450486,-195.685031,0.0003177,7]
[341432234,1730879450495,-151.0,0.0003177,7]
[341432237,1730879450507,-155.838809,0.0003178,7]
[341432239,1730879450516,-195.685031,0.0003178,7]
[341432240,1730879450526,-151.0,0.0003178,7]
[341432243,1730879450535,-195.685031,0.0003186,7]
[341432245,1730879450547,-151.0,0.0003189,7]
[341432247,1730879450557,-157.738459,0.000319,7]
[341432249,1730879450566,-151.0,0.000319,7]
[341432251,1730879450576,-195.685031,0.000319,7]
[341432253,1730879450590,-151.0,0.000319,7]
[341432255,1730879450601,-22083.02001873,0.00034563,20]
[341433410,1730879834868,1169.27083333,0.00020816,2]
[341433418,1730880026451,170.156121,0.00013973,2]
[341433429,1730880444093,175.0,9e-05,2]
[341433430,1730880446047,1169.27083333,0.00020816,2]
[341433505,1730880565557,175.0,9e-05,2]
[341433506,1730880565904,175.0,8e-05,2]
[341433566,1730880631834,-547.44333076,0.00025778,2]
[341433572,1730880631889,-3920.70823614,0.00025778,2]
[341433574,1730880631899,-227.23363815,0.00026748,2]
[341433576,1730880631908,-300.0,0.00026857,2]
[341433578,1730880631918,-300.0,0.00026857,2]
[341433581,1730880631928,-562.87518719,0.00026858,2]
[341433583,1730880631940,-176.3794254,0.00026858,2]
[341433585,1730880631949,-500.0,0.00026858,2]
[341433587,1730880631959,-500.0,0.00026858,2]
[341433588,1730880631968,-488.69440229,0.00026858,2]
[341433590,1730880631977,-500.0,0.00026858,2]
[341433592,1730880631986,-500.0,0.00026858,2]
[341433594,1730880631996,-500.0,0.00026858,2]
[341433596,1730880632006,-500.0,0.00026858,2]
[341433612,1730880632141,-500.0,0.00026858,2]
[341433614,1730880632151,-500.0,0.00026858,2]
[341433616,1730880632160,-307.72263856,0.00026858,2]
[341433618,1730880632169,-500.0,0.00026858,2]
[341433620,1730880632178,-500.0,0.00026858,2]
[341433622,1730880632191,-337.68299112,0.00026858,2]
[341433624,1730880632200,-500.0,0.00026858,2]
[341433626,1730880632210,-500.47553196,0.00026858,2]
[341433628,1730880632222,-500.0,0.00026858,2]
[341433630,1730880632232,-500.0,0.00026858,2]
[341433632,1730880632244,-500.0,0.00026858,2]
[341433634,1730880632254,-500.0,0.00026858,2]
[341433636,1730880632264,-500.0,0.00026858,2]
[341433637,1730880632273,-500.0,0.00026858,2]
[341433639,1730880632282,-500.0,0.00026858,2]
[341433641,1730880632295,-500.0,0.00026858,2]
[341433643,1730880632304,-500.0,0.00026858,2]
[341433645,1730880632314,-500.0,0.00026858,2]
[341433646,1730880632323,-500.0,0.00026858,2]
[341433647,1730880632332,-500.0,0.00026858,2]
[341433648,1730880632342,-500.0,0.00026858,2]
[341433649,1730880632351,-500.0,0.00026858,2]
[341433650,1730880632362,-500.0,0.00026858,2]
[341433651,1730880632372,-500.0,0.00026858,2]
[341433652,1730880632383,-500.0,0.00026858,2]
[341433653,1730880632392,-500.0,0.00026858,2]
[341433654,1730880632402,-500.0,0.00026858,2]
[341433655,1730880632412,-500.0,0.00026858,2]
[341433656,1730880632421,-500.0,0.00026858,2]
[341433657,1730880632431,-500.0,0.00026858,2]
[341433658,1730880632444,-500.0,0.00026858,2]
[341433659,1730880632453,-500.0,0.00026858,2]
[341433660,1730880632463,-509.11772406,0.00026858,2]
[341433661,1730880632472,-500.0,0.00026858,2]
[341433662,1730880632481,-500.0,0.00026858,2]
[341433663,1730880632491,-500.0,0.00026858,2]
[341433664,1730880632501,-500.0,0.00026858,2]
[341433665,1730880632511,-500.0,0.00026858,2]
[341433666,1730880632521,-500.0,0.00026858,2]
[341433667,1730880632530,-500.0,0.00026858,2]
[341433668,1730880632539,-500.0,0.00026858,2]
[341433669,1730880632549,-500.0,0.00026858,2]
[341433670,1730880632558,-500.0,0.00026858,2]
[341433671,1730880632567,-500.0,0.00026858,2]
[341433672,1730880632579,-500.0,0.00026858,2]
[341433673,1730880632588,-309.75470161,0.00026858,2]
[341433675,1730880632597,-500.0,0.00026858,2]
[341433677,1730880632607,-364.53392278,0.00026858,2]
[341433678,1730880632617,-500.0,0.00026858,2]
[341433680,1730880632626,-500.0,0.00026858,2]
[341433682,1730880632636,-500.0,0.00026858,2]
[341433684,1730880632646,-500.0,0.00026858,2]
[341433686,1730880632658,-500.0,0.00026858,2]
[341433687,1730880632667,-500.0,0.00026858,2]
[341433688,1730880632678,-500.0,0.00026858,2]
[341433689,1730880632689,-500.0,0.00026858,2]
[341433690,1730880632699,-500.0,0.00026858,2]
[341433691,1730880632708,-450.68798534,0.00026858,2]
[341433692,1730880632718,-500.0,0.00026858,2]
[341433693,1730880632729,-500.0,0.00026858,2]
[341433694,1730880632738,-500.0,0.00026858,2]
[341433695,1730880632748,-500.0,0.00026858,2]
[341433696,1730880632758,-88.92477939,0.00026858,2]
[341433697,1730880632771,-556.14401914,0.00026858,2]
[341433698,1730880632780,-500.0,0.00026858,2]
[341433699,1730880632790,-500.0,0.00026858,2]
[341433700,1730880632800,-500.0,0.00026858,2]
[341433701,1730880632808,-500.0,0.00026858,2]
[341433702,1730880632818,-500.0,0.00026858,2]
[341433703,1730880632827,-500.0,0.00026858,2]
[341433704,1730880632837,-500.0,0.00026858,2]
[341433705,1730880632846,-500.0,0.00026858,2]
[341433706,1730880632855,-500.0,0.00026858,2]
[341433707,1730880632865,-500.0,0.00026858,2]
[341433708,1730880632874,-366.56192099,0.00026858,2]
[341433709,1730880632883,-500.0,0.00026858,2]
[341433710,1730880632892,-500.0,0.00026858,2]
[341433711,1730880632902,-392.71545163,0.00026858,2]
[341433712,1730880632913,-107.28454837,0.00026858,2]
[341433713,1730880632922,-500.0,0.00026858,2]
[341433714,1730880632933,-157.91152016,0.00026858,2]
[341433715,1730880632942,-500.0,0.00026858,2]
[341433716,1730880632952,-500.0,0.00026858,2]
[341433717,1730880632962,-500.0,0.00026858,2]
[341433718,1730880632971,-464.0375871,0.00026858,2]
[341433719,1730880632980,-500.0,0.00026858,2]
[341433720,1730880632990,-500.0,0.00026858,2]
[341433721,1730880633000,-500.0,0.00026858,2]
[341433722,1730880633010,-500.0,0.00026858,2]
[341433723,1730880633021,-500.0,0.00026858,2]
[341433724,1730880633031,-389.76843818,0.00026858,2]
[341433725,1730880633041,-500.0,0.00026858,2]
[341433726,1730880633051,-500.0,0.00026858,2]
[341433727,1730880633060,-500.0,0.00026858,2]
[341433728,1730880633069,-500.0,0.00026858,2]
[341433729,1730880633079,-500.0,0.00026858,2]
[341433730,1730880633089,-318.39068994,0.00026858,2]
[341433762,1730880637956,-181.60931006,0.00026858,2]
[341433764,1730880637966,-500.0,0.00026858,2]
[341433766,1730880637976,-500.0,0.00026858,2]
[341433768,1730880637986,-500.0,0.00026858,2]
[341433770,1730880637995,-500.0,0.00026858,2]
[341433772,1730880638004,-500.0,0.00026858,2]
[341433774,1730880638015,-500.0,0.00026858,2]
[341433776,1730880638026,-500.0,0.00026858,2]
[341433778,1730880638037,-500.0,0.00026858,2]
[341433780,1730880638048,-500.0,0.00026858,2]
[341433782,1730880638058,-500.0,0.00026858,2]
[341433784,1730880638068,-500.0,0.00026858,2]
[341433786,1730880638077,-500.0,0.00026858,2]
[341433788,1730880638086,-500.0,0.00026858,2]
[341433790,1730880638096,-500.0,0.00026858,2]
[341433792,1730880638106,-500.0,0.00026858,2]
[341433794,1730880638115,-195.0,0.00026858,2]
[341433796,1730880638124,-500.0,0.00026858,2]
[341433798,1730880638134,-500.0,0.00026858,2]
[341433800,1730880638144,-500.0,0.00026858,2]
[341433802,1730880638153,-500.0,0.00026858,2]
[341433804,1730880638163,-500.0,0.00026858,2]
[341433806,1730880638172,-500.0,0.00026858,2]
[341433808,1730880638181,-500.0,0.00026858,2]
[341433810,1730880638193,-500.0,0.00026858,2]
[341433812,1730880638201,-410.0,0.00026858,2]
[341433814,1730880638210,-500.0,0.00026858,2]
[341433816,1730880638222,-500.0,0.00026858,2]
[341433818,1730880638231,-500.0,0.00026858,2]
[341433820,1730880638240,-500.0,0.000269,2]
[341433822,1730880638249,-601.19790058,0.000269,2]
[341433824,1730880638260,-508.87467165,0.000269,2]
[341433826,1730880638269,-500.0,0.000269,2]
[341433828,1730880638279,-260.18078008,0.00027397,2]
[341433830,1730880638288,-1000.0,0.0002827,5]
[341433832,1730880638298,-500.0,0.0002827,5]
[341433834,1730880638308,-162.744,0.00028294,19]
[341433836,1730880638317,-420.0,0.0002904,2]
[341433838,1730880638326,-502.54176911,0.0002935,5]
[341433840,1730880638336,-502.50620464,0.0002935,5]
[341433842,1730880638347,-260.52414203,0.0002935,5]
[341433844,1730880638361,-420.0,0.00029543,2]
[341433846,1730880638370,-7538.38304644,0.0003,90]
[341433848,1730880638380,-161.61726623,0.00030137,2]
[341433850,1730880638390,-343.15904464,0.0003057,5]
[341433852,1730880638399,-502.24024721,0.0003057,5]
[341433854,1730880638408,-500.0,0.0003057,5]
[341433856,1730880638418,-500.0,0.0003057,2]
[341433859,1730880638427,-503.47932396,0.0003057,5]
[341433861,1730880638436,-503.25960112,0.0003057,5]
[341433863,1730880638448,-500.0,0.0003057,2]
[341433865,1730880638457,-502.43881425,0.0003057,5]
[341433867,1730880638466,-620.8042278,0.0003057,5]
[341433869,1730880638476,-500.0,0.0003057,5]
[341433871,1730880638487,-500.0,0.0003057,5]
[341433873,1730880638496,-577.47330335,0.00030775,5]
[341433875,1730880638505,-403.0,0.000314,2]
[341433877,1730880638514,-847.27050516,0.000315,120]
[341433879,1730880638523,-155.742,0.000315,2]
[341433881,1730880638532,-2966.91896642,0.0003161,2]
[341433883,1730880638541,-791.36,0.00031626,3]
[341433885,1730880638550,-9397.04,0.00031632,10]
[341433887,1730880638560,-2966.91896638,0.00031636,2]
[341433889,1730880638569,-793.71591109,0.00031642,10]
[341433891,1730880638581,-730.41,0.00031642,10]
[341434137,1730880641001,-9752.31408891,0.00031642,10]
[341434139,1730880641014,-13531.73,0.00031652,10]
[341434141,1730880641024,-2966.91896638,0.00031663,2]
[341434143,1730880641034,-2966.91896638,0.00031689,2]
[341434158,1730880641046,-7236.60601617,0.0003169,10]
[341434371,1730880643036,-533.0286291,0.000299,2]
[341434377,1730880643090,-1226.43780336,0.000299,2]
[341434379,1730880643100,-594.25398383,0.0003169,10]
[341434382,1730880643109,-396.78524652,0.000317,2]
[341435104,1730880655250,175.0,9e-05,2]
[341435108,1730881011420,175.0,9e-05,2]
[341435109,1730881058441,1169.27083333,0.00020816,2]
[341435110,1730881086198,500.0,0.00034506,30]
[341435111,1730881159834,168.475136,0.00013973,2]
[341435115,1730881458441,188.20485592,0.00020816,2]
[341435116,1730881531319,250.0,0.00020816,2]
[341435123,1730881671616,1169.27083333,0.00020816,2]
[341435124,1730881683637,174.309737,0.00013973,2]
[341435128,1730881726033,19931.19899539,0.0001,2]
[341435275,1730881832094,-511.789915,0.00022,30]
[341435277,1730881832106,-6396.37846752,0.00022,30]
[341435278,1730881832116,-300.0,0.00026847,2]
[341435281,1730881832126,-300.0,0.00026848,2]
[341435282,1730881832135,-1393.2255805,0.0002731,2]
[341435285,1730881832146,-7507.78982923,0.0002847,2]
[341435287,1730881832158,-2938.04038885,0.0002847,2]
[341435290,1730881832173,-2694.12081192,0.0002847,2]
[341435292,1730881832182,-859.5626708,0.00029,2]
[341435294,1730881832193,-420.0,0.0002903,2]
[341435295,1730881832202,-500.0,0.00029154,2]
[341435296,1730881832211,-177.37922887,0.00029154,2]
[341435297,1730881832220,-500.0,0.00029154,2]
[341435298,1730881832231,-500.0,0.00029154,2]
[341435299,1730881832241,-500.0,0.00029154,2]
[341435300,1730881832250,-375.25012479,0.00029155,2]
[341435301,1730881832259,-13139.95103,0.00029155,2]
[341435302,1730881832268,-420.0,0.00029532,2]
[341435303,1730881832277,-1539.53312842,0.00029739,2]
[341435304,1730881832291,-13139.95103,0.00029839,2]
[341435305,1730881832301,-160.37565196,0.00029973,5]
[341435306,1730881832310,-511.85336546,0.00029973,5]
[341435307,1730881832319,-500.0,0.00029973,5]
[341435308,1730881832328,-500.0,0.00029989,2]
[341435309,1730881832337,-12.02295777,0.00029989,2]
[341435310,1730881832349,-195.3406766,0.00029989,2]
[341435311,1730881832358,-172.28217777,0.00029989,2]
[341435312,1730881832367,-179.47992526,0.00029989,2]
[341435313,1730881832378,-384.30448793,0.00029989,2]
[341435314,1730881832387,-3147.05,0.0002999,10]
[341435315,1730881832396,-6001.21,0.0002999,10]
[341435316,1730881832406,-5001.01,0.0002999,10]
[341435317,1730881832415,-196.48,0.0002999,2]
[341435318,1730881832425,-158.872,0.0003,2]
[341435319,1730881832435,-158.872,0.0003,2]
[341435321,1730881832444,-179.319,0.0003,2]
[341435323,1730881832454,-179.319,0.0003,2]
[341435325,1730881832463,-182.287,0.0003,2]
[341435327,1730881832473,-151.0,0.0003,120]
[341435329,1730881832482,-151.0,0.0003,120]
[341435331,1730881832491,-391.33592305,0.0003,10]
[341435333,1730881832501,-8423.42869866,0.0003,2]
[341435335,1730881832510,-48566.70459033,0.0003,2]
[341435337,1730881832520,-7940.54130612,0.0003,10]
[341435339,1730881832530,-1500.0,0.0003,2]
[341435341,1730881832545,-1020.76318291,0.0003,7]
[341435343,1730881832554,-167.21522792,0.0003,2]
[341435345,1730881832564,-44634.01482276,0.0003,2]
[341435348,1730881832576,-14257.79449434,0.0003,2]
[341435453,1730881838115,-154.41871535,0.00029153,2]
[341435455,1730881838126,-500.0,0.00029153,2]
[341435457,1730881838135,-500.0,0.00029153,2]
[341435459,1730881838145,-500.0,0.00029153,2]
[341435461,1730881838156,-241.93102543,0.00029153,2]
[341435463,1730881838168,-500.0,0.00029153,2]
[341435465,1730881838178,-484.94821364,0.00029153,2]
[341435467,1730881838187,-500.0,0.00029153,2]
[341435469,1730881838197,-441.9117724,0.00029153,2]
[341435471,1730881838207,-315.56319984,0.00029153,2]
[341435473,1730881838216,-5691.8555013,0.0003,2]
[341435475,1730881838227,-2533.98908717,0.0003,2]
[341435482,1730881838282,-695.67291244,0.0003,2]
[341435499,1730881838439,-65408.94478857,0.0003,2]
[341435501,1730881838449,-6247.52685697,0.0003,2]
[341435503,1730881838459,-29466.84250087,0.0003,15]
[341435505,1730881838469,-162.744,0.00030123,25]
[341435507,1730881838478,-162.41765425,0.00030137,2]
[341435509,1730881838488,-559.03939791,0.00030137,2]
[341435511,1730881838498,-200.0,0.000309,120]
[341435514,1730881838509,-250.0,0.00031,15]
[341435516,1730881838518,-3283.55518061,0.00031287,2]
[341435518,1730881838528,-173.79557726,0.00031342,5]
[341435520,1730881838542,-1539.53312837,0.00031347,2]
[341435522,1730881838552,-150.112235,0.000316,16]
[341435524,1730881838562,-1000.0,0.000317,2]
[341435526,1730881838572,-55016.77050448,0.000317,3]
[341435528,1730881838582,-5184.32433102,0.000317,2]
[341435530,1730881838593,-174.64283705,0.00031748,30]
[341435532,1730881838606,-921.95732294,0.00031754,30]
[341435534,1730881838616,-500.0,0.00031754,30]
[341435536,1730881838626,-500.0,0.00031754,30]
[341435538,1730881838637,-500.0,0.00031754,30]
[341435540,1730881838647,-505.40304772,0.00031773,5]
[341435542,1730881838657,-500.0,0.00031773,5]
[341435544,1730881838666,-500.0,0.00031773,5]
[341435546,1730881838680,-588.21778384,0.00031773,2]
[341435548,1730881838690,-500.0,0.00031773,2]
[341435550,1730881838699,-500.0,0.00031773,5]
[341435552,1730881838710,-600.0,0.00031799,2]
[341435555,1730881838720,-596.25,0.000318,14]
[341435557,1730881838729,-500.0,0.000318,2]
[341435559,1730881838739,-197.794337,0.000318,16]
[341435561,1730881838748,-3222.90471553,0.000318,2]
[341435563,1730881838765,-505300.20357391,0.000318,2]
[341435566,1730881838778,-1034.06995157,0.000318,2]
[341435568,1730881838790,-59771.17499931,0.000318,2]
[341435909,1730881846209,-4167.51,0.0003179,10]
[341435910,1730881846220,-5674.42110915,0.000318,2]
[341436390,1730882212980,175.0,9e-05,2]
[341436392,1730882267308,169.529785,0.00013973,2]
[341436394,1730882284066,1169.27083333,0.0002082,2]
[341436405,1730882894966,1169.27083333,0.0002082,2]
[341436407,1730882948307,171.112613,0.00013973,2]
[341436449,1730883032140,-166.666666,0.00027691,2]
[341436451,1730883032151,-160.21241916,0.00029999,2]
[341436453,1730883032161,-163.132,0.00029999,24]
[341436455,1730883032171,-500.0,0.00029999,15]
[341436458,1730883032181,-500.0,0.00029999,15]
[341436460,1730883032191,-553.51505675,0.00029999,15]
[341436462,1730883032202,-300.0,0.00029999,2]
[341436464,1730883032212,-3054.71131455,0.0003,2]
[341436467,1730883032229,-4094.836097,0.0003,2]